[Event "Titled Tuesday Blitz July 26 Early 2022"]
[White "Howell, David W L"]
[Black "Pfreundt, Jakob"]
[WhiteFideId "410608"]
[BlackFideId "12918156"]
[WhiteElo "2559"]
[BlackElo "2345"]
[Result "1-0"]
[Round "03"]
[TimeControl "180+1"]
[Date "2022.07.26"]
[WhiteClock "0:00:16"]
[BlackClock "0:00:02"]

1. e4 {[%clk 0:03:00]}  e5 {[%clk 0:02:59]} 2. Nf3 {[%clk 0:02:58]}  Nf6 {[%clk 0:03:00]} 3. Nxe5 {[%clk 0:02:50]}  d6 {[%clk 0:03:00]} 4. Nf3 {[%clk 0:02:48]}  Nxe4 {[%clk 0:03:01]} 5. Nc3 {[%clk 0:02:49]}  Nf6 {[%clk 0:03:01]} 6. d4 {[%clk 0:02:46]}  Be7 {[%clk 0:03:01]} 7. Bd3 {[%clk 0:02:46]}  O-O {[%clk 0:03:01]} 8. h3 {[%clk 0:02:36]}  a6 {[%clk 0:03:02]} 9. O-O {[%clk 0:02:34]}  Re8 {[%clk 0:03:02]} 10. Re1 {[%clk 0:02:30]}  Nbd7 {[%clk 0:03:01]} 11. Bf4 {[%clk 0:02:31]}  b5 {[%clk 0:02:57]} 12. a4 {[%clk 0:02:30]}  b4 {[%clk 0:02:56]} 13. Ne2 {[%clk 0:02:29]}  Nh5 {[%clk 0:02:49]} 14. Bh2 {[%clk 0:02:28]}  Bb7 {[%clk 0:02:49]} 15. Nf4 {[%clk 0:02:10]}  Nxf4 {[%clk 0:02:47]} 16. Bxf4 {[%clk 0:02:10]}  Nf8 {[%clk 0:02:43]} 17. a5 {[%clk 0:02:02]}  Ng6 {[%clk 0:02:32]} 18. Bg3 {[%clk 0:01:54]}  Bf6 {[%clk 0:02:23]} 19. Rxe8+ {[%clk 0:01:55]}  Qxe8 {[%clk 0:02:22]} 20. c3 {[%clk 0:01:56]}  bxc3 {[%clk 0:02:15]} 21. bxc3 {[%clk 0:01:57]}  Bc6 {[%clk 0:02:05]} 22. Nd2 {[%clk 0:01:48]}  Bb5 {[%clk 0:01:55]} 23. Qf1 {[%clk 0:01:45]}  Bxd3 {[%clk 0:01:46]} 24. Qxd3 {[%clk 0:01:46]}  Qc6 {[%clk 0:01:46]} 25. Rb1 {[%clk 0:01:27]}  d5 {[%clk 0:01:37]} 26. Nf1 {[%clk 0:01:14]}  Bg5 {[%clk 0:01:22]} 27. Qf3 {[%clk 0:01:06]}  h6 {[%clk 0:01:17]} 28. Rb4 {[%clk 0:01:03]}  Be7 {[%clk 0:01:12]} 29. Rb1 {[%clk 0:00:56]}  Bd6 {[%clk 0:01:11]} 30. Bxd6 {[%clk 0:00:51]}  Qxd6 {[%clk 0:01:07]} 31. Ne3 {[%clk 0:00:49]}  Ne7 {[%clk 0:01:05]} 32. Nc4 {[%clk 0:00:35]}  Qg6 {[%clk 0:00:55]} 33. Re1 {[%clk 0:00:29]}  Rb8 {[%clk 0:00:46]} 34. Rxe7 {[%clk 0:00:21]}  dxc4 {[%clk 0:00:40]} 35. Rxc7 {[%clk 0:00:21]}  Qe6 {[%clk 0:00:17]} 36. Kh2 {[%clk 0:00:18]}  Rb3 {[%clk 0:00:09]} 37. Rc6 {[%clk 0:00:18]}  Qe1 {[%clk 0:00:02]} 38. Rc8+ {[%clk 0:00:16]} 1-0


[Site "https://www.chess.com"]

[Event "Titled Tuesday Blitz July 26 Early 2022"]
[White "Jacobson, Brandon"]
[Black "Tatarinov, Dmitry"]
[WhiteFideId "30901561"]
[BlackFideId "24160067"]
[WhiteElo "2362"]
[BlackElo "2302"]
[Result "0-1"]
[Round "03"]
[TimeControl "180+1"]
[Date "2022.07.26"]
[WhiteClock "0:00:04"]
[BlackClock "0:00:15"]

1. Nf3 {[%clk 0:03:00]}  d5 {[%clk 0:02:58]} 2. c4 {[%clk 0:03:00]}  e6 {[%clk 0:02:56]} 3. g3 {[%clk 0:02:59]}  Nf6 {[%clk 0:02:56]} 4. Bg2 {[%clk 0:03:00]}  Be7 {[%clk 0:02:55]} 5. d4 {[%clk 0:02:59]}  O-O {[%clk 0:02:53]} 6. O-O {[%clk 0:03:00]}  dxc4 {[%clk 0:02:52]} 7. Qc2 {[%clk 0:02:59]}  a6 {[%clk 0:02:52]} 8. a4 {[%clk 0:02:59]}  Bd7 {[%clk 0:02:51]} 9. Rd1 {[%clk 0:03:00]}  Bc6 {[%clk 0:02:50]} 10. Bg5 {[%clk 0:03:01]}  Nbd7 {[%clk 0:02:49]} 11. Nbd2 {[%clk 0:03:01]}  h6 {[%clk 0:02:43]} 12. Bxf6 {[%clk 0:03:01]}  Nxf6 {[%clk 0:02:43]} 13. Nxc4 {[%clk 0:03:02]}  a5 {[%clk 0:02:39]} 14. Nfe5 {[%clk 0:03:02]}  Bxg2 {[%clk 0:02:37]} 15. Kxg2 {[%clk 0:03:03]}  c6 {[%clk 0:02:36]} 16. e4 {[%clk 0:03:03]}  Bb4 {[%clk 0:02:34]} 17. Nd3 {[%clk 0:02:59]}  Qe7 {[%clk 0:02:34]} 18. f3 {[%clk 0:02:56]}  Rfd8 {[%clk 0:02:34]} 19. Nde5 {[%clk 0:02:47]}  Qc7 {[%clk 0:02:19]} 20. Rd3 {[%clk 0:02:44]}  Rac8 {[%clk 0:02:16]} 21. Rad1 {[%clk 0:02:44]}  Nd7 {[%clk 0:02:07]} 22. Ng4 {[%clk 0:02:41]}  b5 {[%clk 0:02:05]} 23. Nce3 {[%clk 0:02:35]}  bxa4 {[%clk 0:02:03]} 24. Nc4 {[%clk 0:02:28]}  Nb6 {[%clk 0:01:53]} 25. Nge5 {[%clk 0:02:29]}  Nxc4 {[%clk 0:01:48]} 26. Nxc4 {[%clk 0:02:30]}  Qb8 {[%clk 0:01:47]} 27. Qxa4 {[%clk 0:02:29]}  Qb5 {[%clk 0:01:47]} 28. Qc2 {[%clk 0:02:25]}  a4 {[%clk 0:01:47]} 29. Ra1 {[%clk 0:02:23]}  Ra8 {[%clk 0:01:47]} 30. Rdd1 {[%clk 0:02:19]}  Be7 {[%clk 0:01:41]} 31. Ne5 {[%clk 0:02:15]}  Rdc8 {[%clk 0:01:32]} 32. Nd3 {[%clk 0:02:12]}  Bf6 {[%clk 0:01:31]} 33. Nc5 {[%clk 0:02:11]}  Rcb8 {[%clk 0:01:29]} 34. Nxa4 {[%clk 0:01:50]}  Qb3 {[%clk 0:01:25]} 35. Qc3 {[%clk 0:00:27]}  Rb4 {[%clk 0:01:15]} 36. e5 {[%clk 0:00:13]}  Qxc3 {[%clk 0:00:59]} 37. Nxc3 {[%clk 0:00:09]}  Rxb2+ {[%clk 0:00:58]} 38. Kh3 {[%clk 0:00:10]}  Rxa1 {[%clk 0:00:58]} 39. Rxa1 {[%clk 0:00:11]}  Be7 {[%clk 0:00:55]} 40. Ra7 {[%clk 0:00:09]}  Bf8 {[%clk 0:00:47]} 41. Ne4 {[%clk 0:00:05]}  Rb3 {[%clk 0:00:45]} 42. f4 {[%clk 0:00:05]}  Rd3 {[%clk 0:00:45]} 43. Rd7 {[%clk 0:00:05]}  c5 {[%clk 0:00:40]} 44. Nd6 {[%clk 0:00:03]}  Bxd6 {[%clk 0:00:26]} 45. exd6 {[%clk 0:00:01]}  Rxd4 {[%clk 0:00:27]} 46. Rd8+ {[%clk 0:00:02]}  Kh7 {[%clk 0:00:27]} 47. Kg2 {[%clk 0:00:02]}  c4 {[%clk 0:00:26]} 48. d7 {[%clk 0:00:03]}  c3 {[%clk 0:00:24]} 49. Rc8 {[%clk 0:00:03]}  Rxd7 {[%clk 0:00:25]} 50. Rxc3 {[%clk 0:00:04]}  g5 {[%clk 0:00:24]} 51. Kf3 {[%clk 0:00:03]}  Kg6 {[%clk 0:00:23]} 52. Rc5 {[%clk 0:00:03]}  Rd3+ {[%clk 0:00:23]} 53. Kf2 {[%clk 0:00:02]}  Ra3 {[%clk 0:00:20]} 54. Kg2 {[%clk 0:00:02]}  Rd3 {[%clk 0:00:18]} 55. h4 {[%clk 0:00:02]}  Rd5 {[%clk 0:00:09]} 56. Rc2 {[%clk 0:00:03]}  g4 {[%clk 0:00:06]} 57. Kf2 {[%clk 0:00:03]}  h5 {[%clk 0:00:07]} 58. Re2 {[%clk 0:00:02]}  Kf5 {[%clk 0:00:05]} 59. Ra2 {[%clk 0:00:03]}  f6 {[%clk 0:00:05]} 60. Ke3 {[%clk 0:00:03]}  Rb5 {[%clk 0:00:05]} 61. Ra3 {[%clk 0:00:03]}  e5 {[%clk 0:00:04]} 62. fxe5 {[%clk 0:00:04]}  Rxe5+ {[%clk 0:00:04]} 63. Kf2 {[%clk 0:00:04]}  Rb5 {[%clk 0:00:05]} 64. Ra1 {[%clk 0:00:02]}  Rb2+ {[%clk 0:00:04]} 65. Ke3 {[%clk 0:00:03]}  Rg2 {[%clk 0:00:05]} 66. Ra5+ {[%clk 0:00:03]}  Kg6 {[%clk 0:00:05]} 67. Kf4 {[%clk 0:00:04]}  Rf2+ {[%clk 0:00:05]} 68. Ke4 {[%clk 0:00:05]}  Rf3 {[%clk 0:00:06]} 69. Ra8 {[%clk 0:00:05]}  Rxg3 {[%clk 0:00:06]} 70. Rg8+ {[%clk 0:00:05]}  Kf7 {[%clk 0:00:07]} 71. Rh8 {[%clk 0:00:06]}  Rg1 {[%clk 0:00:07]} 72. Rxh5 {[%clk 0:00:07]}  Rf1 {[%clk 0:00:07]} 73. Rh7+ {[%clk 0:00:06]}  Kg6 {[%clk 0:00:08]} 74. Rh8 {[%clk 0:00:06]}  f5+ {[%clk 0:00:09]} 75. Ke3 {[%clk 0:00:06]}  Rf3+ {[%clk 0:00:09]} 76. Ke2 {[%clk 0:00:06]}  Kf6 {[%clk 0:00:10]} 77. h5 {[%clk 0:00:05]}  Ke5 {[%clk 0:00:10]} 78. h6 {[%clk 0:00:06]}  Rh3 {[%clk 0:00:11]} 79. h7 {[%clk 0:00:04]}  Kf4 {[%clk 0:00:12]} 80. Kf2 {[%clk 0:00:05]}  g3+ {[%clk 0:00:12]} 81. Kg1 {[%clk 0:00:05]}  Rh2 {[%clk 0:00:13]} 82. Kf1 {[%clk 0:00:04]}  Kf3 {[%clk 0:00:13]} 83. Kg1 {[%clk 0:00:02]}  f4 {[%clk 0:00:14]} 84. Ra8 {[%clk 0:00:03]}  Rxh7 {[%clk 0:00:13]} 85. Ra3+ {[%clk 0:00:03]}  Kg4 {[%clk 0:00:14]} 86. Ra4 {[%clk 0:00:04]}  Rb7 {[%clk 0:00:14]} 87. Ra1 {[%clk 0:00:04]}  Rb2 {[%clk 0:00:15]} 88. Ra8 {[%clk 0:00:04]}  Rb3 {[%clk 0:00:14]} 89. Ra1 {[%clk 0:00:03]}  Kh3 {[%clk 0:00:14]} 90. Rf1 {[%clk 0:00:02]}  f3 {[%clk 0:00:15]} 91. Ra1 {[%clk 0:00:02]}  f2+ {[%clk 0:00:12]} 92. Kf1 {[%clk 0:00:02]}  Re3 {[%clk 0:00:12]} 93. Rb1 {[%clk 0:00:02]}  Re1+ {[%clk 0:00:13]} 94. Rxe1 {[%clk 0:00:03]}  fxe1=Q+ {[%clk 0:00:14]} 95. Kxe1 {[%clk 0:00:04]}  Kh2 {[%clk 0:00:15]} 0-1


[Site "https://www.chess.com"]

[Event "Titled Tuesday Blitz July 26 Early 2022"]
[White "Maksimovic, Bojan"]
[Black "Dimitrov, Atanas"]
[WhiteFideId "14408120"]
[BlackFideId "2901315"]
[WhiteElo "2453"]
[BlackElo "2569"]
[Result "1-0"]
[Round "03"]
[TimeControl "180+1"]
[Date "2022.07.26"]
[WhiteClock "0:00:06"]
[BlackClock "0:00:02"]

1. e4 {[%clk 0:03:00]}  c5 {[%clk 0:02:59]} 2. Nf3 {[%clk 0:03:01]}  d6 {[%clk 0:03:00]} 3. Nc3 {[%clk 0:03:01]}  Nf6 {[%clk 0:03:00]} 4. Bb5+ {[%clk 0:03:01]}  Bd7 {[%clk 0:03:00]} 5. a4 {[%clk 0:03:01]}  e6 {[%clk 0:03:00]} 6. O-O {[%clk 0:03:01]}  Be7 {[%clk 0:03:01]} 7. Bxd7+ {[%clk 0:02:59]}  Nbxd7 {[%clk 0:03:00]} 8. d3 {[%clk 0:02:59]}  O-O {[%clk 0:03:01]} 9. Bf4 {[%clk 0:02:58]}  Re8 {[%clk 0:02:54]} 10. h3 {[%clk 0:02:58]}  Nf8 {[%clk 0:02:54]} 11. Qd2 {[%clk 0:02:55]}  Ng6 {[%clk 0:02:54]} 12. Bh2 {[%clk 0:02:56]}  Nd7 {[%clk 0:02:46]} 13. d4 {[%clk 0:02:50]}  cxd4 {[%clk 0:02:45]} 14. Qxd4 {[%clk 0:02:50]}  Nde5 {[%clk 0:02:45]} 15. Nxe5 {[%clk 0:02:42]}  dxe5 {[%clk 0:02:46]} 16. Bxe5 {[%clk 0:02:42]}  Nxe5 {[%clk 0:02:41]} 17. Qxe5 {[%clk 0:02:43]}  Qd2 {[%clk 0:02:38]} 18. Rac1 {[%clk 0:01:58]}  Bf6 {[%clk 0:02:35]} 19. Qg3 {[%clk 0:01:58]}  Bxc3 {[%clk 0:02:32]} 20. Rfd1 {[%clk 0:01:58]}  Qe2 {[%clk 0:02:27]} 21. Qxc3 {[%clk 0:01:58]}  Qxe4 {[%clk 0:02:27]} 22. Qd4 {[%clk 0:01:47]}  Qc6 {[%clk 0:02:24]} 23. Rd3 {[%clk 0:01:41]}  e5 {[%clk 0:02:19]} 24. Qb4 {[%clk 0:01:41]}  b6 {[%clk 0:02:15]} 25. c4 {[%clk 0:01:40]}  Rac8 {[%clk 0:02:13]} 26. b3 {[%clk 0:01:35]}  g6 {[%clk 0:02:07]} 27. Rcd1 {[%clk 0:01:36]}  Kg7 {[%clk 0:02:01]} 28. Rd7 {[%clk 0:01:34]}  Rc7 {[%clk 0:02:01]} 29. R7d6 {[%clk 0:01:34]}  Qe4 {[%clk 0:01:58]} 30. Qc3 {[%clk 0:01:34]}  Qf5 {[%clk 0:01:54]} 31. R1d3 {[%clk 0:01:32]}  Rce7 {[%clk 0:01:51]} 32. Re3 {[%clk 0:01:27]}  f6 {[%clk 0:01:49]} 33. Rd5 {[%clk 0:01:24]}  Qb1+ {[%clk 0:01:46]} 34. Kh2 {[%clk 0:01:24]}  Qf5 {[%clk 0:01:46]} 35. Qd2 {[%clk 0:01:22]}  Qf4+ {[%clk 0:01:46]} 36. Kg1 {[%clk 0:01:21]}  Qf5 {[%clk 0:01:44]} 37. Red3 {[%clk 0:01:20]}  h5 {[%clk 0:01:34]} 38. a5 {[%clk 0:01:14]}  bxa5 {[%clk 0:01:31]} 39. Rxa5 {[%clk 0:01:14]}  Qe4 {[%clk 0:01:23]} 40. Re3 {[%clk 0:01:12]}  Qc6 {[%clk 0:01:22]} 41. Qa2 {[%clk 0:01:04]}  Qb6 {[%clk 0:01:18]} 42. Rb5 {[%clk 0:01:04]}  Qd4 {[%clk 0:01:17]} 43. Rd5 {[%clk 0:01:04]}  Qb6 {[%clk 0:01:15]} 44. Re1 {[%clk 0:01:02]}  Rc8 {[%clk 0:01:14]} 45. Red1 {[%clk 0:00:55]}  Rcc7 {[%clk 0:01:13]} 46. Rd6 {[%clk 0:00:55]}  Qb4 {[%clk 0:01:11]} 47. Ra6 {[%clk 0:00:50]}  Rb7 {[%clk 0:01:11]} 48. Ra3 {[%clk 0:00:50]}  Qc3 {[%clk 0:01:01]} 49. Qa1 {[%clk 0:00:41]}  Qc2 {[%clk 0:00:57]} 50. Qc1 {[%clk 0:00:37]}  Qe4 {[%clk 0:00:53]} 51. Qc3 {[%clk 0:00:33]}  Qc6 {[%clk 0:00:41]} 52. Ra5 {[%clk 0:00:32]}  a6 {[%clk 0:00:39]} 53. Rda1 {[%clk 0:00:31]}  Qb6 {[%clk 0:00:37]} 54. R1a3 {[%clk 0:00:28]}  Ra7 {[%clk 0:00:38]} 55. Qa1 {[%clk 0:00:28]}  Red7 {[%clk 0:00:34]} 56. c5 {[%clk 0:00:28]}  Qc6 {[%clk 0:00:32]} 57. b4 {[%clk 0:00:26]}  Qd5 {[%clk 0:00:21]} 58. Rxa6 {[%clk 0:00:24]}  Rab7 {[%clk 0:00:18]} 59. Rb6 {[%clk 0:00:23]}  Rbc7 {[%clk 0:00:14]} 60. Raa6 {[%clk 0:00:21]}  Rf7 {[%clk 0:00:13]} 61. Rd6 {[%clk 0:00:20]}  Qc4 {[%clk 0:00:14]} 62. Qb2 {[%clk 0:00:20]}  Rb7 {[%clk 0:00:14]} 63. Rab6 {[%clk 0:00:20]}  Ra7 {[%clk 0:00:14]} 64. Rd1 {[%clk 0:00:06]}  Ra2 {[%clk 0:00:13]} 65. Qc1 {[%clk 0:00:07]}  Qe4 {[%clk 0:00:09]} 66. Qe3 {[%clk 0:00:06]}  Qc2 {[%clk 0:00:09]} 67. Rf1 {[%clk 0:00:06]}  Rb2 {[%clk 0:00:08]} 68. c6 {[%clk 0:00:07]}  Rb3 {[%clk 0:00:09]} 69. Qc5 {[%clk 0:00:06]}  Rc3 {[%clk 0:00:09]} 70. Qd6 {[%clk 0:00:05]}  Rd3 {[%clk 0:00:09]} 71. Qe6 {[%clk 0:00:05]}  Rc3 {[%clk 0:00:09]} 72. Rb7 {[%clk 0:00:05]}  Rxb7 {[%clk 0:00:02]} 73. cxb7 {[%clk 0:00:06]} 1-0


[Site "https://www.chess.com"]

[Event "Titled Tuesday Blitz July 26 Early 2022"]
[White "Mardov, Dimitar"]
[Black "Williams, Simon K"]
[WhiteFideId "30919495"]
[BlackFideId "404454"]
[WhiteElo "2185"]
[BlackElo "2468"]
[Result "1-0"]
[Round "03"]
[TimeControl "180+1"]
[Date "2022.07.26"]
[WhiteClock "0:00:04"]
[BlackClock "0:00:06"]

1. e4 {[%clk 0:03:00]}  e6 {[%clk 0:02:51]} 2. d4 {[%clk 0:02:57]}  b6 {[%clk 0:02:51]} 3. Nc3 {[%clk 0:02:57]}  Bb7 {[%clk 0:02:51]} 4. Bd3 {[%clk 0:02:57]}  Bb4 {[%clk 0:02:48]} 5. Ne2 {[%clk 0:02:55]}  Nf6 {[%clk 0:02:38]} 6. O-O {[%clk 0:02:55]}  d5 {[%clk 0:02:37]} 7. e5 {[%clk 0:02:52]}  Ne4 {[%clk 0:02:35]} 8. Nxe4 {[%clk 0:02:48]}  dxe4 {[%clk 0:02:35]} 9. Bb5+ {[%clk 0:02:47]}  Nd7 {[%clk 0:02:31]} 10. c3 {[%clk 0:02:47]}  Be7 {[%clk 0:02:31]} 11. Ng3 {[%clk 0:02:47]}  a6 {[%clk 0:02:26]} 12. Ba4 {[%clk 0:02:44]}  O-O {[%clk 0:01:57]} 13. Bc2 {[%clk 0:02:42]}  f5 {[%clk 0:01:55]} 14. exf6 {[%clk 0:02:41]}  Nxf6 {[%clk 0:01:53]} 15. Re1 {[%clk 0:02:39]}  c5 {[%clk 0:01:38]} 16. Be3 {[%clk 0:02:25]}  Qc7 {[%clk 0:01:27]} 17. dxc5 {[%clk 0:02:20]}  Bxc5 {[%clk 0:01:24]} 18. Bxc5 {[%clk 0:01:44]}  Qxc5 {[%clk 0:01:23]} 19. Qe2 {[%clk 0:01:45]}  h5 {[%clk 0:01:09]} 20. Rf1 {[%clk 0:01:38]}  Qe5 {[%clk 0:00:40]} 21. Rae1 {[%clk 0:01:35]}  Rad8 {[%clk 0:00:40]} 22. Nxe4 {[%clk 0:01:30]}  Bxe4 {[%clk 0:00:37]} 23. Bxe4 {[%clk 0:01:30]}  Nxe4 {[%clk 0:00:36]} 24. Qxe4 {[%clk 0:01:30]}  Qxe4 {[%clk 0:00:36]} 25. Rxe4 {[%clk 0:01:31]}  Rd2 {[%clk 0:00:37]} 26. b3 {[%clk 0:01:18]}  Rf6 {[%clk 0:00:33]} 27. Rb4 {[%clk 0:01:14]}  b5 {[%clk 0:00:32]} 28. a4 {[%clk 0:01:13]}  Rf5 {[%clk 0:00:30]} 29. axb5 {[%clk 0:01:12]}  Rxb5 {[%clk 0:00:30]} 30. Ra4 {[%clk 0:00:52]}  Rxb3 {[%clk 0:00:28]} 31. Rxa6 {[%clk 0:00:52]}  Rxc3 {[%clk 0:00:28]} 32. Rxe6 {[%clk 0:00:52]}  Kh7 {[%clk 0:00:26]} 33. g3 {[%clk 0:00:45]}  Rcd3 {[%clk 0:00:25]} 34. Kg2 {[%clk 0:00:45]}  Rd1 {[%clk 0:00:26]} 35. Rxd1 {[%clk 0:00:40]}  Rxd1 {[%clk 0:00:26]} 36. Kh3 {[%clk 0:00:38]}  Rd4 {[%clk 0:00:26]} 37. Kg2 {[%clk 0:00:35]}  g6 {[%clk 0:00:26]} 38. h3 {[%clk 0:00:33]}  Kg7 {[%clk 0:00:26]} 39. Re3 {[%clk 0:00:33]}  Kf6 {[%clk 0:00:26]} 40. Kf3 {[%clk 0:00:31]}  Rb4 {[%clk 0:00:27]} 41. Re4 {[%clk 0:00:31]}  Rb2 {[%clk 0:00:26]} 42. Rf4+ {[%clk 0:00:31]}  Kg7 {[%clk 0:00:25]} 43. Ra4 {[%clk 0:00:32]}  Rc2 {[%clk 0:00:25]} 44. Ke3 {[%clk 0:00:31]}  Kf6 {[%clk 0:00:25]} 45. Kf3 {[%clk 0:00:28]}  Rb2 {[%clk 0:00:25]} 46. g4 {[%clk 0:00:28]}  hxg4+ {[%clk 0:00:25]} 47. hxg4 {[%clk 0:00:29]}  Rc2 {[%clk 0:00:23]} 48. Kg3 {[%clk 0:00:29]}  Rb2 {[%clk 0:00:21]} 49. Ra6+ {[%clk 0:00:29]}  Kg7 {[%clk 0:00:21]} 50. f3 {[%clk 0:00:29]}  Rb1 {[%clk 0:00:21]} 51. Kh4 {[%clk 0:00:28]}  Rb5 {[%clk 0:00:20]} 52. f4 {[%clk 0:00:25]}  Rc5 {[%clk 0:00:20]} 53. Ra7+ {[%clk 0:00:24]}  Kf6 {[%clk 0:00:20]} 54. g5+ {[%clk 0:00:20]}  Kf5 {[%clk 0:00:17]} 55. Rf7+ {[%clk 0:00:20]}  Ke4 {[%clk 0:00:17]} 56. Kg4 {[%clk 0:00:18]}  Rc1 {[%clk 0:00:07]} 57. Re7+ {[%clk 0:00:18]}  Kd5 {[%clk 0:00:08]} 58. Rg7 {[%clk 0:00:06]}  Rg1+ {[%clk 0:00:07]} 59. Kf3 {[%clk 0:00:07]}  Rf1+ {[%clk 0:00:08]} 60. Ke3 {[%clk 0:00:07]}  Re1+ {[%clk 0:00:08]} 61. Kf2 {[%clk 0:00:07]}  Re6 {[%clk 0:00:02]} 62. Kf3 {[%clk 0:00:07]}  Rb6 {[%clk 0:00:01]} 63. Re7 {[%clk 0:00:06]}  Ra6 {[%clk 0:00:02]} 64. Re5+ {[%clk 0:00:06]}  Kd4 {[%clk 0:00:02]} 65. Re7 {[%clk 0:00:04]}  Rb6 {[%clk 0:00:02]} 66. Rd7+ {[%clk 0:00:05]}  Kc5 {[%clk 0:00:03]} 67. Ke4 {[%clk 0:00:04]}  Kc4 {[%clk 0:00:02]} 68. Ke5 {[%clk 0:00:04]}  Kc3 {[%clk 0:00:02]} 69. Rd6 {[%clk 0:00:03]}  Rb5+ {[%clk 0:00:03]} 70. Kf6 {[%clk 0:00:03]}  Rb4 {[%clk 0:00:02]} 71. Kxg6 {[%clk 0:00:03]}  Rxf4 {[%clk 0:00:02]} 72. Kh7 {[%clk 0:00:03]}  Kc4 {[%clk 0:00:03]} 73. g6 {[%clk 0:00:03]}  Kc5 {[%clk 0:00:03]} 74. Rd1 {[%clk 0:00:04]}  Rh4+ {[%clk 0:00:04]} 75. Kg8 {[%clk 0:00:04]}  Kc6 {[%clk 0:00:04]} 76. g7 {[%clk 0:00:04]}  Kc7 {[%clk 0:00:04]} 77. Re1 {[%clk 0:00:02]}  Kd7 {[%clk 0:00:04]} 78. Re5 {[%clk 0:00:02]}  Kd6 {[%clk 0:00:04]} 79. Re8 {[%clk 0:00:03]}  Kd7 {[%clk 0:00:05]} 80. Re1 {[%clk 0:00:02]}  Rh3 {[%clk 0:00:05]} 81. Re4 {[%clk 0:00:01]}  Kd6 {[%clk 0:00:05]} 82. Kf7 {[%clk 0:00:02]}  Rf3+ {[%clk 0:00:05]} 83. Kg6 {[%clk 0:00:02]}  Rg3+ {[%clk 0:00:06]} 84. Kf6 {[%clk 0:00:03]}  Kd7 {[%clk 0:00:06]} 85. Re5 {[%clk 0:00:01]}  Rf3+ {[%clk 0:00:06]} 86. Rf5 {[%clk 0:00:02]}  Rg3 {[%clk 0:00:07]} 87. Rg5 {[%clk 0:00:02]}  Rf3+ {[%clk 0:00:07]} 88. Kg6 {[%clk 0:00:03]}  Ke7 {[%clk 0:00:07]} 89. g8=Q {[%clk 0:00:03]}  Rf6+ {[%clk 0:00:07]} 90. Kh5 {[%clk 0:00:03]}  Rf4 {[%clk 0:00:06]} 91. Rg7+ {[%clk 0:00:04]} 1-0


[Site "https://www.chess.com"]

[Event "Titled Tuesday Blitz July 26 Early 2022"]
[White "Matinian, Nikita"]
[Black "Paravyan, David"]
[WhiteFideId "24129100"]
[BlackFideId "4194985"]
[WhiteElo "2422"]
[BlackElo "2569"]
[Result "1/2-1/2"]
[Round "03"]
[TimeControl "180+1"]
[Date "2022.07.26"]
[WhiteClock "0:00:12"]
[BlackClock "0:00:09"]

1. e4 {[%clk 0:03:00]}  e5 {[%clk 0:03:00]} 2. Nf3 {[%clk 0:03:01]}  Nf6 {[%clk 0:02:59]} 3. Nxe5 {[%clk 0:02:59]}  d6 {[%clk 0:02:59]} 4. Nf3 {[%clk 0:02:59]}  Nxe4 {[%clk 0:02:59]} 5. Qe2 {[%clk 0:03:00]}  Qe7 {[%clk 0:02:57]} 6. d3 {[%clk 0:03:01]}  Nf6 {[%clk 0:02:57]} 7. Bg5 {[%clk 0:03:01]}  Qxe2+ {[%clk 0:02:56]} 8. Bxe2 {[%clk 0:03:02]}  Be7 {[%clk 0:02:57]} 9. Nc3 {[%clk 0:03:02]}  h6 {[%clk 0:02:56]} 10. Bd2 {[%clk 0:02:59]}  c6 {[%clk 0:02:55]} 11. O-O-O {[%clk 0:02:57]}  Na6 {[%clk 0:02:56]} 12. Rde1 {[%clk 0:02:56]}  Nc7 {[%clk 0:02:56]} 13. Bd1 {[%clk 0:02:51]}  Ne6 {[%clk 0:02:53]} 14. Nh4 {[%clk 0:02:51]}  g6 {[%clk 0:02:47]} 15. f4 {[%clk 0:02:51]}  Ng7 {[%clk 0:02:26]} 16. h3 {[%clk 0:02:35]}  Be6 {[%clk 0:02:08]} 17. g4 {[%clk 0:02:35]}  Nd5 {[%clk 0:01:53]} 18. Nf3 {[%clk 0:02:28]}  Kd7 {[%clk 0:01:47]} 19. Nd4 {[%clk 0:02:22]}  Bf6 {[%clk 0:01:45]} 20. Nxe6 {[%clk 0:02:21]}  fxe6 {[%clk 0:01:25]} 21. Ne4 {[%clk 0:02:20]}  Bh4 {[%clk 0:01:23]} 22. Ref1 {[%clk 0:02:17]}  Rhf8 {[%clk 0:01:20]} 23. c4 {[%clk 0:02:17]}  Nf6 {[%clk 0:01:18]} 24. Bc3 {[%clk 0:02:17]}  Nxe4 {[%clk 0:01:15]} 25. dxe4 {[%clk 0:02:07]}  Bf6 {[%clk 0:01:14]} 26. e5 {[%clk 0:02:08]}  dxe5 {[%clk 0:01:13]} 27. fxe5 {[%clk 0:02:06]}  Be7 {[%clk 0:01:05]} 28. Bc2 {[%clk 0:02:03]}  g5 {[%clk 0:01:00]} 29. Bg6 {[%clk 0:01:46]}  Rxf1+ {[%clk 0:00:46]} 30. Rxf1 {[%clk 0:01:47]}  Rf8 {[%clk 0:00:45]} 31. Rxf8 {[%clk 0:01:24]}  Bxf8 {[%clk 0:00:46]} 32. Kc2 {[%clk 0:01:25]}  Ne8 {[%clk 0:00:42]} 33. Kd3 {[%clk 0:01:24]}  Nc7 {[%clk 0:00:41]} 34. b4 {[%clk 0:01:23]}  b5 {[%clk 0:00:40]} 35. Be4 {[%clk 0:01:19]}  a6 {[%clk 0:00:35]} 36. a3 {[%clk 0:01:18]}  Be7 {[%clk 0:00:31]} 37. Be1 {[%clk 0:01:13]}  bxc4+ {[%clk 0:00:26]} 38. Kxc4 {[%clk 0:01:13]}  Nd5 {[%clk 0:00:26]} 39. Bd3 {[%clk 0:01:06]}  Kc7 {[%clk 0:00:25]} 40. Bf2 {[%clk 0:01:02]}  Bd8 {[%clk 0:00:23]} 41. Bf1 {[%clk 0:00:59]}  Kb7 {[%clk 0:00:22]} 42. Kd3 {[%clk 0:00:37]}  Bb6 {[%clk 0:00:20]} 43. Bxb6 {[%clk 0:00:34]}  Kxb6 {[%clk 0:00:21]} 44. Kd4 {[%clk 0:00:33]}  Nf4 {[%clk 0:00:16]} 45. Bc4 {[%clk 0:00:33]}  Nd5 {[%clk 0:00:09]} 46. Bd3 {[%clk 0:00:24]}  Nf4 {[%clk 0:00:09]} 47. Bc4 {[%clk 0:00:17]}  Nd5 {[%clk 0:00:09]} 48. Bb3 {[%clk 0:00:14]}  Nf4 {[%clk 0:00:09]} 49. Bc4 {[%clk 0:00:12]} 1/2-1/2


[Site "https://www.chess.com"]